fUST/lending_fUST_20260621
["ID","MTS","AMOUNT","RATE_DAILY","PERIOD"]
[425862935,1782010238000,-500.0,0.00016438,2]
[425862932,1782010238000,-504.92030969,0.00016438,2]
[425862939,1782010238000,-592.79932389,0.00016524,2]
[425862940,1782010238000,-644.99436182,0.00016524,2]
[425862928,1782010238000,-178.471232,0.00015489,2]
[425862930,1782010238000,-161.7217826,0.00016134,2]
[425862929,1782010238000,-175.1195284,0.00015723,2]
[425862925,1782010238000,-300.0,0.00015388,2]
[425862924,1782010238000,-339.85336522,0.00013698,2]
[425862926,1782010238000,-3440.0905847,0.00015389,2]
[425862927,1782010238000,-388.908883,0.00015437,2]
[425862922,1782010238000,-500.0,0.00013698,2]
[425862923,1782010238000,-384.12768077,0.00013698,2]
[425862931,1782010238000,-500.0,0.00016438,2]
[425862942,1782010238000,-500.0,0.00016524,2]
[425862933,1782010238000,-500.0,0.00016438,2]
[425862949,1782010238000,-500.0,0.00016642,2]
[425862944,1782010238000,-500.0,0.00016524,2]
[425862963,1782010238000,-143.18912873,0.00016798,2]
[425862962,1782010238000,-500.0,0.00016798,2]
[425862959,1782010238000,-500.0,0.00016712,2]
[425862958,1782010238000,-500.0,0.00016712,2]
[425862954,1782010238000,-500.0,0.00016643,2]
[425862957,1782010238000,-500.0,0.00016712,2]
[425862956,1782010238000,-500.0,0.00016712,2]
[425862955,1782010238000,-1536.2035369,0.00016644,2]
[425862960,1782010238000,-600.0,0.00016766,2]
[425862948,1782010238000,-500.0,0.00016642,2]
[425862952,1782010238000,-500.0,0.00016643,2]
[425862945,1782010238000,-500.0,0.00016524,2]
[425862961,1782010238000,-1363.77,0.00016785,2]
[425862950,1782010238000,-519.08740215,0.00016643,2]
[425862946,1782010238000,-500.0,0.00016524,2]
[425862947,1782010238000,-500.0,0.00016525,2]
[425862943,1782010238000,-336.84949868,0.00016524,2]
[425862953,1782010238000,-500.0,0.00016643,2]
[425862951,1782010238000,-509.30856387,0.00016643,2]
[425863024,1782010240000,-500.0,0.00016916,2]
[425863036,1782010240000,-500.0,0.00016986,2]
[425863023,1782010240000,-500.0,0.00016799,2]
[425863034,1782010240000,-494.64277113,0.00016917,2]
[425863028,1782010240000,-500.0,0.00016916,2]
[425863019,1782010240000,-500.0,0.00016798,2]
[425863015,1782010240000,-500.0,0.00016798,2]
[425863032,1782010240000,-506.34997849,0.00016917,2]
[425863013,1782010240000,-356.81087127,0.00016798,2]
[425863017,1782010240000,-178.3724177,0.00016798,2]
[425863009,1782010240000,-1847.0,0.00013561,2]
[425863011,1782010240000,-500.0,0.00016642,2]
[425863030,1782010240000,-500.0,0.00016917,2]
[425863021,1782010240000,-500.0,0.00016798,2]
[425863026,1782010240000,-500.0,0.00016916,2]
[425863043,1782010240000,-245.627106,0.00017018,2]
[425863039,1782010240000,-500.0,0.00016986,2]
[425863067,1782010240000,-31.13683234,0.0001719,2]
[425863065,1782010240000,-179.31,0.00017172,2]
[425863038,1782010240000,-500.0,0.00016986,2]
[425863063,1782010240000,-1043.30024382,0.00017156,2]
[425863054,1782010240000,-209.77791341,0.00017072,2]
[425863059,1782010240000,-500.0,0.00017073,2]
[425863061,1782010240000,-178.84,0.0001714,2]
[425863049,1782010240000,-500.0,0.00017072,2]
[425863056,1782010240000,-500.0,0.00017072,2]
[425863051,1782010240000,-500.0,0.00017072,2]
[425863047,1782010240000,-1363.77,0.00017059,2]
[425863045,1782010240000,-257.57425105,0.00017021,2]
[425863041,1782010240000,-500.0,0.00016986,2]
[425863052,1782010240000,-500.0,0.00017072,2]
[425863327,1782010243000,-412.37083919,0.00016917,2]
[425863337,1782010243000,-500.0,0.0001726,2]
[425863329,1782010243000,-468.86316766,0.0001719,2]
[425863328,1782010243000,-87.62916081,0.00016917,2]
[425863334,1782010243000,-180.27,0.00017238,2]
[425863330,1782010243000,-500.0,0.0001719,2]
[425863332,1782010243000,-500.0,0.00017191,2]
[425863331,1782010243000,-634.26754808,0.0001719,2]
[425863333,1782010243000,-514.5234727,0.00017191,2]
[425863326,1782010243000,-500.0,0.00016643,2]
[425863336,1782010243000,-500.0,0.0001726,2]
[425863339,1782010243000,-431.03665075,0.00017333,2]
[425863338,1782010243000,-183.41,0.00017327,2]
[425863340,1782010243000,-932.73334925,0.00017333,2]
[425863344,1782010243000,-124.50610826,0.00017346,2]
[425863345,1782010243000,-454.58356867,0.00017346,2]
[425863342,1782010243000,-500.0,0.00017346,2]
[425863343,1782010243000,-375.49389174,0.00017346,2]
[425863341,1782010243000,-500.0,0.00017346,2]
[425863335,1782010243000,-500.0,0.0001726,2]
[425863368,1782010246000,-57256.48715944,0.00017434,2]
[425863366,1782010246000,-45.41643133,0.00017346,2]
[425863367,1782010246000,-500.0,0.00017347,2]
[425863369,1782010246000,-33085.65471583,0.00017434,2]
[425863398,1782010854000,-300.0,0.00011385,2]
[425863431,1782011321000,219.0,0.00023288,120]
[425863517,1782011432000,-500.0,0.00016438,2]
[425863520,1782011432000,-500.0,0.00016438,2]
[425863513,1782011432000,-500.0,0.00016438,2]
[425863507,1782011432000,-230.5907136,0.00015362,2]
[425863509,1782011432000,-327.960456,0.00015842,2]
[425863519,1782011432000,-500.0,0.00016438,2]
[425863511,1782011432000,-500.0,0.00016438,2]
[425863515,1782011432000,-500.0,0.00016438,2]
[425863505,1782011432000,-548.42170385,0.00015362,2]
[425863503,1782011432000,-178.471232,0.00015068,2]
[425863481,1782011432000,-5000.0,0.00010827,2]
[425863499,1782011432000,-500.0,0.00014999,2]
[425863497,1782011432000,-744.893667,0.00014642,2]
[425863501,1782011432000,-9245.3696181,0.00015,2]
[425863493,1782011432000,-282.82500188,0.000125,2]
[425863489,1782011432000,-177.16854251,0.000115,2]
[425863483,1782011432000,-300.0,0.00010958,2]
[425863524,1782011432000,-188.0,0.00016562,2]
[425863487,1782011432000,-200.24,0.00010959,7]
[425863485,1782011432000,-200.0,0.00010959,2]
[425863479,1782011432000,-4700.0,0.00010719,2]
[425863495,1782011432000,-347.57536933,0.00014594,2]
[425863522,1782011432000,-500.0,0.00016438,2]
[425863491,1782011432000,-393.50283424,0.000115,2]
[425863526,1782011432000,-500.0,0.00016711,2]
[425863570,1782011432000,-16134.96012982,0.00016856,2]
[425863563,1782011432000,-589.9178875,0.00016716,2]
[425863528,1782011432000,-256.78862191,0.00016711,2]
[425863565,1782011432000,-183.015,0.00016798,2]
[425863559,1782011432000,-127.77327955,0.00016712,2]
[425863561,1782011432000,-500.0,0.00016712,2]
[425863568,1782011432000,-386.43432779,0.00016855,2]
[425863556,1782011432000,-51.73996508,0.00016712,2]
[425863551,1782011432000,-206.27439861,0.00016712,2]
[425863555,1782011432000,-500.0,0.00016712,2]
[425863553,1782011432000,-500.0,0.00016712,2]
[425863566,1782011432000,-150.42191319,0.00016798,2]
[425863547,1782011432000,-500.0,0.00016712,2]
[425863545,1782011432000,-597.75901691,0.00016711,2]
[425863538,1782011432000,-500.0,0.00016711,2]
[425863541,1782011432000,-500.0,0.00016711,2]
[425863543,1782011432000,-500.0,0.00016711,2]
[425863540,1782011432000,-272.9022626,0.00016711,2]
[425863532,1782011432000,-500.0,0.00016711,2]
[425863534,1782011432000,-500.0,0.00016711,2]
[425863536,1782011432000,-594.55003268,0.00016711,2]
[425863530,1782011432000,-500.0,0.00016711,2]
[425863549,1782011432000,-500.0,0.00016712,2]
[425863654,1782011440000,-500.0,0.00016712,2]
[425863652,1782011440000,-9.49070111,0.00016438,2]
[425863633,1782011440000,-490.50929889,0.00016438,2]
[425863658,1782011441000,-1625.19056592,0.00016756,2]
[425863656,1782011441000,-39828.37276576,0.00016756,2]
[425863660,1782011441000,-32943.07998254,0.00016756,2]
[425864004,1782011443000,-304.25747825,0.00016756,2]
[425864386,1782011446000,-26696.4824819,0.00016856,2]
[425864363,1782011446000,-456485.95530689,0.00016856,2]
[425864361,1782011446000,-264014.69587154,0.00016756,2]
[425867024,1782011493000,14769.41215253,0.0001,2]
[425867026,1782011555000,1463.64874431,0.0001,2]
[425867048,1782012094000,278.0,0.0002,120]
[425867146,1782012632000,-304.8001815,0.00014999,2]
[425867192,1782012638000,-195.1998185,0.00014999,2]
[425867202,1782012638000,-179.26364266,0.00015362,2]
[425867194,1782012638000,-197.577902,0.00015264,2]
[425867196,1782012638000,-291.87693635,0.00015362,2]
[425867204,1782012638000,-291.404248,0.00015411,2]
[425867206,1782012638000,-326.3649842,0.00016316,2]
[425867200,1782012638000,-520.6876061,0.00015362,2]
[425867198,1782012638000,-333.57364154,0.00015362,2]
[425867208,1782012639000,-84.07346592,0.00016437,2]
[425867216,1782012639000,-359.91616242,0.000165,2]
[425867219,1782012639000,-420.67195055,0.000165,2]
[425867222,1782012639000,-680.07,0.00016546,3]
[425867217,1782012639000,-400.85973601,0.000165,2]
[425867225,1782012639000,-500.0,0.00016555,2]
[425867223,1782012639000,-500.0,0.00016555,2]
[425867212,1782012639000,-215.92653408,0.00016437,2]
[425867215,1782012639000,-500.0,0.00016438,2]
[425867221,1782012639000,-672.19033896,0.00016546,2]
[425867218,1782012639000,-406.30707734,0.000165,2]
[425867220,1782012639000,-335.95384584,0.00016546,2]
[425867237,1782012639000,-6341.96856784,0.00016556,2]
[425867243,1782012639000,-10796.76165153,0.00016556,2]
[425867240,1782012639000,-4784.68557449,0.00016556,2]
[425867226,1782012639000,-502.12244304,0.00016555,2]
[425867230,1782012639000,-26033.7396307,0.00016556,2]
[425867228,1782012639000,-500.0,0.00016555,2]
[425867235,1782012639000,-849.82696779,0.00016556,2]
[425867214,1782012639000,-500.0,0.00016438,2]
[425867815,1782012644000,-234.64184037,0.0001617,2]
[425867817,1782012644000,-8488.55987968,0.00016556,2]
[425867831,1782012644000,-720.0,0.00016556,2]
[425867819,1782012644000,-4687.97517867,0.00016556,2]
[425868217,1782012648000,-500.0,0.00016555,2]
[425868218,1782012648000,-276439.86381106,0.00016556,2]
[425868220,1782012648000,-12477.8732666,0.00016556,2]
[425868247,1782012649000,-500.0,0.00016655,2]
[425868238,1782012649000,-8375.38550208,0.00016556,2]
[425868243,1782012649000,-500.0,0.00016655,2]
[425868239,1782012649000,-182.149,0.00016655,2]
[425868256,1782012649000,-500.0,0.00016655,2]
[425868248,1782012649000,-500.0,0.00016655,2]
[425868241,1782012649000,-152.29364072,0.00016655,2]
[425868254,1782012649000,-500.0,0.00016655,2]
[425868258,1782012649000,-500.0,0.00016655,2]
[425868250,1782012649000,-500.0,0.00016655,2]
[425868262,1782012649000,-1943.58504224,0.00016656,2]
[425868245,1782012649000,-500.0,0.00016655,2]
[425868265,1782012649000,-8295.31891492,0.00016656,2]
[425868252,1782012649000,-500.0,0.00016655,2]
[425872025,1782012693000,7526.28908288,0.0001,2]
[425872027,1782012710000,-3552.48118121,0.00016456,2]
[425872028,1782012754000,745.85524812,0.0001,2]
[425872128,1782013832000,-300.0,0.00015246,2]
[425872129,1782013832000,-1487.97382174,0.00015247,2]
[425872134,1782013832000,-887.68158841,0.00015247,2]
[425872132,1782013832000,-2210.05918132,0.00015247,2]
[425872130,1782013832000,-692.80529833,0.00015247,2]
[425872126,1782013832000,-166.66666666,0.00015172,2]
[425872125,1782013832000,-166.66666666,0.0001516,2]
[425872124,1782013832000,-166.66666668,0.00015147,2]
[425872143,1782013832000,-258.25721879,0.00016438,2]
[425872115,1782013832000,-3285.04412212,0.00014735,2]
[425872123,1782013832000,-638.50106012,0.00014735,2]
[425872117,1782013832000,-1076.45481776,0.00014735,2]
[425872147,1782013832000,-500.0,0.00016438,2]
[425872136,1782013832000,-453.0611928,0.00015272,2]
[425872141,1782013832000,-500.0,0.00016438,2]
[425872138,1782013832000,-151.0,0.0001632,2]
[425872158,1782013832000,-500.0,0.00016438,2]
[425872159,1782013832000,-151.0,0.00016445,2]
[425872153,1782013832000,-500.0,0.00016438,2]
[425872151,1782013832000,-500.0,0.00016438,2]
[425872163,1782013832000,-151.0,0.00016445,2]
[425872154,1782013832000,-500.0,0.00016438,2]
[425872161,1782013832000,-151.0,0.00016445,2]
[425872156,1782013832000,-500.0,0.00016438,2]
[425872149,1782013832000,-500.0,0.00016438,2]
[425872145,1782013832000,-241.74278121,0.00016438,2]
[425872140,1782013832000,-500.0,0.00016438,2]
[425872165,1782013832000,-151.0,0.00016445,2]
[425872168,1782013833000,-151.0,0.00016445,2]
[425872173,1782013833000,-151.0,0.00016445,2]
[425872170,1782013833000,-151.0,0.00016445,2]
[425872183,1782013833000,-1484.49,0.00016455,2]
[425872175,1782013833000,-285.26902827,0.00016445,2]
[425872177,1782013833000,-480.20043106,0.00016454,2]
[425872181,1782013833000,-374.78297928,0.00016454,2]
[425872179,1782013833000,-491.3142052,0.00016454,2]
[425872184,1782013833000,-4870.62405185,0.00016455,2]
[425872331,1782013841000,-39099.01812421,0.00016455,2]
[425872329,1782013841000,-1419.1572564,0.00015487,2]
[425872339,1782013841000,-15463.57914573,0.00016455,2]
[425872333,1782013841000,-6096.05132267,0.00016455,2]
[425872676,1782013844000,-722.0,0.00016455,2]
[425872675,1782013844000,-4332.12958166,0.00016455,2]
[425873003,1782013847000,-2935.85375051,0.00016455,2]
[425873010,1782013847000,-3069.44065081,0.00016455,2]
[425873035,1782013847000,-1831.55,0.00016455,2]
[425878629,1782014168000,557.75775972,0.00023272,120]
[425878628,1782014168000,557.75775972,0.00023123,120]
[425878630,1782014212000,483.8875598,0.00022859,120]
[425878635,1782014467000,557.75775971,0.00023162,120]
[425878636,1782014496000,866.25245994,0.00022875,120]
[425878682,1782015031000,-433.45811007,0.00013085,2]
[425878677,1782015031000,-4774.63886838,0.00012692,2]
[425878679,1782015031000,-199.26630231,0.0001282,2]
[425878678,1782015031000,-225.36113162,0.00012692,2]
[425878680,1782015031000,-1410.22496158,0.00013085,2]
[425878737,1782015039000,-344.88191602,0.00014615,2]
[425878729,1782015039000,-300.0,0.00013488,2]
[425878731,1782015039000,-322.54468664,0.00013884,2]
[425878735,1782015039000,-1000.0,0.00014052,2]
[425878726,1782015039000,-3156.31692835,0.00013085,2]
[425878728,1782015039000,-166.67038914,0.00013217,2]
[425878733,1782015039000,-368.25387651,0.00013884,2]
[425878738,1782015040000,-418.278385,0.00014655,2]
[425878740,1782015040000,-420.0,0.00014785,2]
[425878744,1782015040000,-1047.27340813,0.00015476,2]
[425878742,1782015040000,-185.462779,0.00015349,2]
[425878746,1782015040000,-189.88,0.00015477,2]
[425878749,1782015040000,-193.67,0.00015494,2]
[425878748,1782015040000,-197.33,0.00015494,2]
[425878756,1782015040000,-24733.28560732,0.00016155,2]
[425878754,1782015040000,-150.4,0.00015918,2]
[425878753,1782015040000,-185.07,0.00015744,2]
[425878766,1782015040000,-21926.70217237,0.00016255,2]
[425878764,1782015040000,-113728.6707102,0.00016255,2]
[425878760,1782015040000,-622823.7464393,0.00016155,2]
[425878762,1782015040000,-336.14030174,0.00016254,2]
[425878770,1782015040000,-2320.46982443,0.00012954,2]
[425878768,1782015040000,-25548.66752833,0.00016255,2]
[425878772,1782015040000,-488.41472066,0.00012954,2]
[425878774,1782015040000,-215.80530134,0.00016255,2]
[425878751,1782015040000,-1988.660152,0.00015691,2]
[425878921,1782015046000,-491.92488302,0.00016255,2]
[425878924,1782015049000,-500.0,0.00016255,2]
[425878925,1782015049000,-287.41003066,0.00016255,2]
[425878927,1782015069000,440.62863018,0.00023143,120]
[425878935,1782015368000,308.8165276,0.00023272,120]
[425878934,1782015368000,409.78462606,0.00023143,120]
[425878982,1782016231000,-97.44882837,0.00014328,2]
[425878981,1782016231000,-393.05621716,0.00014328,2]
[425878980,1782016231000,-343.92419001,0.00014328,2]
[425879005,1782016267000,151.0,0.00013769,2]
[425879006,1782016269000,359.48254531,0.00023143,120]
[425879009,1782016289000,-238.64529712,0.00014195,2]
[425879010,1782016306000,-429.56153481,0.00014195,2]
[425880077,1782017438000,-763.66495077,0.0001217,2]
[425880076,1782017438000,-516.0873606,0.0001167,2]
[425880080,1782017438000,-31.16582852,0.00014767,2]
[425880078,1782017438000,-1192.03325909,0.0001217,2]
[425880079,1782017438000,-177.3507018,0.00014328,2]
[425880487,1782017443000,-500.0,0.00015851,2]
[425880485,1782017443000,-500.0,0.00015851,2]
[425880483,1782017443000,-150.54758988,0.00015633,2]
[425880478,1782017443000,-371.01633938,0.00014845,2]
[425880479,1782017443000,-179.405217,0.00015068,2]
[425880481,1782017443000,-181.892,0.00015633,2]
[425880474,1782017443000,-177.97336448,0.00014767,2]
[425880489,1782017443000,-6936.09745643,0.00015852,2]
[425880476,1782017443000,-324.96426122,0.00014845,2]
[425880602,1782017446000,-141.18176537,0.00015854,2]
[425880600,1782017446000,-206.81823463,0.00015625,2]
[425880741,1782017467000,459.42095821,0.00023143,120]
[425880749,1782017622000,941.84053592,0.00022847,30]
[425880769,1782017864000,532.5699982,0.0001,2]
[425880779,1782018054000,-5.216,0.000114,2]
[425880784,1782018071000,302.15930006,0.00023143,120]
[425880783,1782018071000,-151.0,0.000114,2]
[425880785,1782018087000,-301.85923734,0.000115,2]
[425880786,1782018104000,-1063.63349433,0.00012,2]
[425880788,1782018121000,-324.96426122,0.00012728,2]
[425880789,1782018137000,-371.01633938,0.00012728,2]
[425880790,1782018154000,-433.45811007,0.00013,2]
[425880860,1782018632000,-170.16669514,0.00014074,2]
[425880854,1782018632000,-1562.28334245,0.00013396,2]
[425880858,1782018632000,-289.0,0.00014073,2]
[425880852,1782018632000,-999.86133917,0.00013396,2]
[425880849,1782018632000,-312.45666849,0.00013396,2]
[425880856,1782018632000,-224.67914076,0.00014003,2]
[425881118,1782018638000,-1006.26426296,0.00014074,2]
[425881116,1782018638000,-31.28761176,0.00014074,2]
[425881117,1782018638000,-644.65378207,0.00014074,2]
[425881121,1782018638000,-208.06467247,0.00015524,2]
[425881122,1782018638000,-2672.21731189,0.00015651,2]
[425881119,1782018638000,-154.51153936,0.00014263,2]
[425881123,1782018638000,-5684.44170335,0.00015652,2]
[425881124,1782018638000,-52245.2369482,0.00015652,2]
[425881120,1782018638000,-198.976135,0.00014738,2]
[425881201,1782018641000,-326.66937278,0.00015652,2]
[425881194,1782018641000,-402.76926163,0.00015652,2]
[425881276,1782018643000,-1692.57371227,0.00015652,2]
[425881275,1782018643000,-351.41676919,0.00015652,2]
[425881320,1782018646000,-3732.27606172,0.00015652,2]
[425881349,1782018647000,-3561.02973803,0.00015652,2]
[425882542,1782019822000,8159.83,0.00022873,120]
[425882580,1782019832000,-757.8974748,0.00014408,2]
[425882582,1782019832000,-198.9761365,0.00014474,2]
[425882600,1782019832000,-212.52841768,0.00014602,2]
[425882586,1782019832000,-136.83847662,0.00014602,2]
[425882603,1782019832000,-244.22123475,0.00014869,2]
[425882584,1782019832000,-1000.0,0.00014599,2]
[425882747,1782019839000,-500.0,0.00015551,2]
[425882752,1782019839000,-500.0,0.00015551,2]
[425882754,1782019839000,-500.0,0.00015551,2]
[425882751,1782019839000,-500.0,0.00015551,2]
[425882746,1782019839000,-501.47540124,0.00015551,2]
[425882745,1782019839000,-500.0,0.00015551,2]
[425882744,1782019839000,-457.8316106,0.00015488,2]
[425882741,1782019839000,-300.68730875,0.00014869,2]
[425882742,1782019839000,-351.6172416,0.00015333,2]
[425882739,1782019839000,-675.86989825,0.00014869,2]
[425882738,1782019839000,-225.60268518,0.00014869,2]
[425882740,1782019839000,-263.10139516,0.00014869,2]
[425882749,1782019839000,-500.0,0.00015551,2]
[425882743,1782019839000,-161.48580676,0.00015408,2]
[425882750,1782019839000,-500.0,0.00015551,2]
[425882768,1782019839000,-394829.86643426,0.00015751,2]
[425882758,1782019839000,-280.63754669,0.0001575,2]
[425882767,1782019839000,-1083.401914,0.0001575,2]
[425882769,1782019839000,-356088.81008249,0.00015751,2]
[425882753,1782019839000,-500.0,0.00015551,2]
[425882766,1782019839000,-1083.401914,0.0001575,2]
[425882763,1782019839000,-151.0,0.0001575,2]
[425882762,1782019839000,-235.29821122,0.0001575,2]
[425882760,1782019839000,-500.0,0.0001575,2]
[425882765,1782019839000,-1083.401914,0.0001575,2]
[425882761,1782019839000,-159.04377052,0.0001575,2]
[425882748,1782019839000,-500.0,0.00015551,2]
[425882755,1782019839000,-359.50501812,0.00015551,2]
[425882756,1782019839000,-278.12077085,0.00015652,2]
[425882759,1782019839000,-500.0,0.0001575,2]
[425882757,1782019839000,-494.43692596,0.00015652,2]
[425882764,1782019839000,-1083.401914,0.0001575,2]
[425882802,1782019847000,-3960.65400525,0.00015751,2]
[425882903,1782021031000,-1887.05918974,0.00013009,2]
[425882914,1782021038000,-500.0,0.00015199,2]
[425882917,1782021038000,-500.0,0.00015199,2]
[425882916,1782021038000,-308.95410217,0.00015199,2]
[425882915,1782021038000,-191.04589783,0.00015199,2]
[425882918,1782021038000,-500.0,0.00015199,2]
[425882920,1782021038000,-500.0,0.00015199,2]
[425882922,1782021038000,-500.0,0.00015199,2]
[425882913,1782021038000,-647.62095962,0.00015199,2]
[425882919,1782021038000,-500.0,0.00015199,2]
[425882912,1782021038000,-500.0,0.00015199,2]
[425882909,1782021038000,-3578.0549161,0.0001514,2]
[425882908,1782021038000,-586.8914962,0.0001448,2]
[425882910,1782021038000,-500.0,0.00015199,2]
[425882906,1782021038000,-170.63538907,0.00013009,2]
[425882907,1782021038000,-589.45322038,0.0001314,2]
[425882905,1782021038000,-500.0,0.00013009,2]
[425882911,1782021038000,-500.0,0.00015199,2]
[425882921,1782021038000,-500.0,0.00015199,2]
[425882926,1782021038000,-65316.0,0.000152,2]
[425882924,1782021038000,-500.0,0.00015199,2]
[425882923,1782021038000,-373.14961762,0.00015199,2]
[425882939,1782021038000,-500.0,0.00015551,2]
[425882941,1782021038000,-500.0,0.00015551,2]
[425882938,1782021038000,-500.0,0.00015551,2]
[425882937,1782021038000,-500.0,0.00015551,2]
[425882935,1782021038000,-500.0,0.00015551,2]
[425882933,1782021038000,-500.0,0.00015551,2]
[425882934,1782021038000,-500.0,0.00015551,2]
[425882936,1782021038000,-500.0,0.00015551,2]
[425882932,1782021038000,-500.0,0.00015551,2]
[425882929,1782021038000,-150.80278097,0.00015551,2]
[425882930,1782021038000,-500.0,0.00015551,2]
[425882925,1782021038000,-500.0,0.00015199,2]
[425882928,1782021038000,-181.892,0.0001524,2]
[425882927,1782021038000,-281.65836421,0.000152,2]
[425882931,1782021038000,-500.0,0.00015551,2]
[425882940,1782021038000,-500.0,0.00015551,2]
[425882985,1782021039000,-500.0,0.00016438,2]
[425882984,1782021039000,-500.0,0.00016438,2]
[425882983,1782021039000,-500.0,0.00016438,2]
[425882986,1782021039000,-500.0,0.00016438,2]
[425882981,1782021039000,-500.0,0.00016438,2]
[425882978,1782021039000,-514.7683376,0.00016438,2]
[425882979,1782021039000,-510.21091648,0.00016438,2]
[425882976,1782021039000,-1576.4047,0.00016438,2]
[425882977,1782021039000,-500.0,0.00016438,2]
[425882974,1782021039000,-151.0,0.000163,2]
[425882988,1782021039000,-500.0,0.00016438,2]
[425882982,1782021039000,-528.35105559,0.00016438,2]
[425882987,1782021039000,-316.23101213,0.00016438,2]
[425882996,1782021039000,-500.0,0.00016438,2]
[425882990,1782021039000,-543.81052363,0.00016438,2]
[425882991,1782021039000,-500.0,0.00016438,2]
[425882993,1782021039000,-500.0,0.00016438,2]
[425882992,1782021039000,-513.60185796,0.00016438,2]
[425882994,1782021039000,-500.0,0.00016438,2]
[425882995,1782021039000,-500.0,0.00016438,2]
[425882975,1782021039000,-1576.4047,0.00016438,2]
[425882998,1782021039000,-500.0,0.00016438,2]
[425882997,1782021039000,-509.37362533,0.00016438,2]
[425883000,1782021039000,-502.20811673,0.00016438,2]
[425882999,1782021039000,-500.0,0.00016438,2]
[425883002,1782021039000,-511.9743746,0.00016438,2]
[425883001,1782021039000,-500.0,0.00016438,2]
[425882989,1782021039000,-510.00078812,0.00016438,2]
[425882972,1782021039000,-3578.05491606,0.00016233,2]
[425882965,1782021039000,-219.46933747,0.00016,2]
[425882973,1782021039000,-500.0,0.00016298,2]
[425882946,1782021039000,-151.0,0.000157,2]
[425882942,1782021039000,-228.61762462,0.00015551,2]
[425882945,1782021039000,-151.0,0.000157,2]
[425882943,1782021039000,-151.0,0.000157,2]
[425882944,1782021039000,-151.0,0.000157,2]
[425882947,1782021039000,-161.7217827,0.00015738,2]
[425882949,1782021039000,-772.55769681,0.0001575,2]
[425882950,1782021039000,-371.17251392,0.0001575,2]
[425882948,1782021039000,-237.78819711,0.0001575,2]
[425882952,1782021039000,-209.1974052,0.0001575,2]
[425882953,1782021039000,-187.650116,0.0001575,2]
[425882951,1782021039000,-1111.37060033,0.0001575,2]
[425882955,1782021039000,-337.7702088,0.0001575,2]
[425882970,1782021039000,-151.0,0.00016052,2]
[425882954,1782021039000,-383.67729903,0.0001575,2]
[425882957,1782021039000,-151.0,0.000158,2]
[425882959,1782021039000,-151.0,0.000158,2]
[425882958,1782021039000,-151.0,0.000158,2]
[425882961,1782021039000,-263.94,0.00015825,2]
[425882960,1782021039000,-151.0,0.000158,2]
[425882964,1782021039000,-4324.85166871,0.00015947,2]
[425882963,1782021039000,-456.95920479,0.00015946,2]
[425883004,1782021039000,-500.0,0.00016438,2]
[425882962,1782021039000,-180.6,0.000159,2]
[425882967,1782021039000,-2158.569806,0.00016029,2]
[425882968,1782021039000,-100170.43010586,0.00016052,2]
[425882966,1782021039000,-500.0,0.00016024,2]
[425882969,1782021039000,-151.132076,0.00016052,2]
[425882956,1782021039000,-500.0,0.0001575,2]
[425883003,1782021039000,-500.0,0.00016438,2]
[425882980,1782021039000,-500.0,0.00016438,2]
[425883008,1782021039000,-500.0,0.00016438,2]
[425883044,1782021039000,-500.0,0.00016438,2]
[425883046,1782021039000,-500.0,0.00016438,2]
[425883043,1782021039000,-500.0,0.00016438,2]
[425883048,1782021039000,-516.27422182,0.00016438,2]
[425883051,1782021039000,-520.95953793,0.00016438,2]
[425883053,1782021039000,-500.0,0.00016438,2]
[425883049,1782021039000,-500.0,0.00016438,2]
[425883052,1782021039000,-500.0,0.00016438,2]